[Event "Early-Titled-Tuesday-Blitz-October-17-2023"]
[Site "Chess.com"]
[Date "2023.10.17"]
[Round "1"]
[White "Aslanov_Umid"]
[Black "vladislavkovalev"]
[Result "0-1"]
[WhiteElo "2501"]
[BlackElo "2864"]
[TimeControl "180+1"]
[EndTime "8:08:20 PDT"]
[Termination "vladislavkovalev won by checkmate"]

1. e4 {[%clk 0:03:00]} 1... e5 {[%clk 0:03:00.2]} 2. Nf3 {[%clk 0:02:59.4]} 2...
Nc6 {[%clk 0:03:00.9]} 3. Bc4 {[%clk 0:02:59.5]} 3... Nf6 {[%clk 0:03:01.1]} 4.
d3 {[%clk 0:02:59.5]} 4... Bc5 {[%clk 0:03:01.8]} 5. O-O {[%clk 0:03:00]} 5...
d6 {[%clk 0:03:02.4]} 6. c3 {[%clk 0:03:00.5]} 6... a6 {[%clk 0:03:03.1]} 7. a4
{[%clk 0:03:00.8]} 7... h6 {[%clk 0:03:03.6]} 8. Nbd2 {[%clk 0:03:00.6]} 8...
Ba7 {[%clk 0:03:04.3]} 9. Re1 {[%clk 0:03:01]} 9... O-O {[%clk 0:03:03.6]} 10.
h3 {[%clk 0:03:01]} 10... Be6 {[%clk 0:03:04.2]} 11. Bb3 {[%clk 0:03:00.6]}
11... Re8 {[%clk 0:03:01.8]} 12. Bc2 {[%clk 0:02:56.1]} 12... d5 {[%clk
0:02:59.9]} 13. Qe2 {[%clk 0:02:55.7]} 13... dxe4 {[%clk 0:02:50]} 14. dxe4
{[%clk 0:02:56.6]} 14... Nh5 {[%clk 0:02:50.2]} 15. Nf1 {[%clk 0:02:50.1]} 15...
Qf6 {[%clk 0:02:49.6]} 16. N3h2 {[%clk 0:02:39.7]} 16... Nf4 {[%clk 0:01:53]}
17. Bxf4 {[%clk 0:02:39.5]} 17... exf4 {[%clk 0:01:43.6]} 18. Nf3 {[%clk
0:02:31]} 18... g5 {[%clk 0:01:38.4]} 19. e5 {[%clk 0:02:11.5]} 19... Qg7 {[%clk
0:01:38.3]} 20. Nd4 {[%clk 0:02:11.8]} 20... Nxd4 {[%clk 0:01:34]} 21. cxd4
{[%clk 0:02:08.7]} 21... Bxd4 {[%clk 0:01:34.9]} 22. Qe4 {[%clk 0:02:07.4]}
22... c5 {[%clk 0:01:33.6]} 23. Qxb7 {[%clk 0:02:02.4]} 23... Rab8 {[%clk
0:01:31.7]} 24. Qxa6 {[%clk 0:02:02]} 24... Rxb2 {[%clk 0:01:31.7]} 25. Qd3
{[%clk 0:01:54.2]} 25... Rd8 {[%clk 0:01:27.1]} 26. Qe4 {[%clk 0:01:51.8]} 26...
Qg6 {[%clk 0:01:22.1]} 27. Qxd4 {[%clk 0:01:39.8]} 27... cxd4 {[%clk 0:01:22.3]}
28. Bxg6 {[%clk 0:01:40.1]} 28... fxg6 {[%clk 0:01:23.2]} 29. Reb1 {[%clk
0:01:27.6]} 29... Rxb1 {[%clk 0:01:16.6]} 30. Rxb1 {[%clk 0:01:27.8]} 30... Ra8
{[%clk 0:01:17.1]} 31. Ra1 {[%clk 0:01:26]} 31... Ra5 {[%clk 0:01:17.2]} 32. Nd2
{[%clk 0:01:22.8]} 32... Bd7 {[%clk 0:01:15]} 33. Nb3 {[%clk 0:01:17.6]} 33...
Rxe5 {[%clk 0:01:06]} 34. a5 {[%clk 0:01:12.9]} 34... d3 {[%clk 0:01:00.6]} 35.
a6 {[%clk 0:01:13.2]} 35... Bc6 {[%clk 0:00:48.3]} 36. a7 {[%clk 0:00:54]} 36...
Re8 {[%clk 0:00:34.1]} 37. Rd1 {[%clk 0:00:30.8]} 37... Ra8 {[%clk 0:00:30.1]}
38. Rxd3 {[%clk 0:00:30.3]} 38... Rxa7 {[%clk 0:00:30.1]} 39. Rd6 {[%clk
0:00:30.9]} 39... Be8 {[%clk 0:00:30.3]} 40. Nd4 {[%clk 0:00:28.4]} 40... Bf7
{[%clk 0:00:29]} 41. Nc6 {[%clk 0:00:24.9]} 41... Ra1+ {[%clk 0:00:22.6]} 42.
Kh2 {[%clk 0:00:25.3]} 42... Re1 {[%clk 0:00:23.5]} 43. g3 {[%clk 0:00:21.4]}
43... Kg7 {[%clk 0:00:17.6]} 44. Kg2 {[%clk 0:00:19.8]} 44... Be8 {[%clk
0:00:15]} 45. Nd4 {[%clk 0:00:18.2]} 45... Kf7 {[%clk 0:00:13.1]} 46. gxf4
{[%clk 0:00:17.2]} 46... gxf4 {[%clk 0:00:14]} 47. Kf3 {[%clk 0:00:17.6]} 47...
Rh1 {[%clk 0:00:08.9]} 48. Kg2 {[%clk 0:00:15.5]} 48... Rd1 {[%clk 0:00:09.2]}
49. Nb5 {[%clk 0:00:09.2]} 49... Rb1 {[%clk 0:00:06]} 50. Nc3 {[%clk 0:00:09]}
50... Rb3 {[%clk 0:00:06.1]} 51. Ne4 {[%clk 0:00:05.6]} 51... Rb4 {[%clk
0:00:03]} 52. Nd2 {[%clk 0:00:05.1]} 52... Rb2 {[%clk 0:00:03.1]} 53. Nc4 {[%clk
0:00:05.5]} 53... Rc2 {[%clk 0:00:03.3]} 54. Ne5+ {[%clk 0:00:05.9]} 54... Kg7
{[%clk 0:00:04]} 55. Nd3 {[%clk 0:00:06.4]} 55... Rd2 {[%clk 0:00:03.6]} 56. Kf3
{[%clk 0:00:03.5]} 56... g5 {[%clk 0:00:03.8]} 57. Rd4 {[%clk 0:00:02]} 57...
Bh5+ {[%clk 0:00:04.3]} 58. Ke4 {[%clk 0:00:02.1]} 58... Bg6+ {[%clk 0:00:05.2]}
59. Kf3 {[%clk 0:00:01.7]} 59... Rxd3+ {[%clk 0:00:05.9]} 60. Rxd3 {[%clk
0:00:01.9]} 60... Bxd3 {[%clk 0:00:06.8]} 61. Kg4 {[%clk 0:00:02.8]} 61... Kg6
{[%clk 0:00:07.2]} 62. f3 {[%clk 0:00:03.7]} 62... Bf5# {[%clk 0:00:07.3]} 0-1

[Event "Early-Titled-Tuesday-Blitz-October-17-2023"]
[Site "Chess.com"]
[Date "2023.10.17"]
[Round "1"]
[White "stollenmonster"]
[Black "MidnightFox"]
[Result "1/2-1/2"]
[WhiteElo "2805"]
[BlackElo "2484"]
[TimeControl "180+1"]
[EndTime "8:08:24 PDT"]
[Termination "Game drawn - insufficient material"]

1. e4 {[%clk 0:03:00.9]} 1... c5 {[%clk 0:02:49.2]} 2. Nf3 {[%clk 0:03:01.1]}
2... d6 {[%clk 0:02:48.6]} 3. d4 {[%clk 0:03:01]} 3... cxd4 {[%clk 0:02:46.1]}
4. Nxd4 {[%clk 0:03:01.9]} 4... Nf6 {[%clk 0:02:46.7]} 5. Nc3 {[%clk 0:03:02.1]}
5... a6 {[%clk 0:02:47.6]} 6. a4 {[%clk 0:03:02.2]} 6... e5 {[%clk 0:02:47.3]}
7. Nde2 {[%clk 0:03:01.7]} 7... Be7 {[%clk 0:02:48.2]} 8. g3 {[%clk 0:03:02.2]}
8... O-O {[%clk 0:02:49.1]} 9. Bg2 {[%clk 0:03:02.7]} 9... Be6 {[%clk
0:02:47.8]} 10. h3 {[%clk 0:03:02.4]} 10... Nbd7 {[%clk 0:02:47.9]} 11. O-O
{[%clk 0:03:01.6]} 11... Rc8 {[%clk 0:02:47.6]} 12. a5 {[%clk 0:03:01]} 12... b5
{[%clk 0:02:45.6]} 13. axb6 {[%clk 0:02:59.7]} 13... Qxb6 {[%clk 0:02:45.5]} 14.
b3 {[%clk 0:02:57.4]} 14... Rc7 {[%clk 0:02:35.8]} 15. Be3 {[%clk 0:02:56.5]}
15... Qb7 {[%clk 0:02:34.4]} 16. Nd5 {[%clk 0:02:44.2]} 16... Nxd5 {[%clk
0:02:29.3]} 17. exd5 {[%clk 0:02:44.9]} 17... Bf5 {[%clk 0:02:29.3]} 18. c4
{[%clk 0:02:44.7]} 18... Rb8 {[%clk 0:02:27.1]} 19. Ra3 {[%clk 0:02:39.6]} 19...
Nc5 {[%clk 0:02:23.1]} 20. g4 {[%clk 0:02:31.7]} 20... Bg6 {[%clk 0:02:20.6]}
21. f4 {[%clk 0:02:30.2]} 21... exf4 {[%clk 0:02:17.5]} 22. Nxf4 {[%clk
0:02:29.3]} 22... Nxb3 {[%clk 0:02:09.2]} 23. Nxg6 {[%clk 0:02:27.6]} 23... hxg6
{[%clk 0:02:09.6]} 24. Qf3 {[%clk 0:02:22.2]} 24... Bf6 {[%clk 0:02:04.3]} 25.
Bf4 {[%clk 0:01:55.8]} 25... Nd4 {[%clk 0:01:51.3]} 26. Qd3 {[%clk 0:01:47.7]}
26... Qb6 {[%clk 0:01:27.3]} 27. Kh1 {[%clk 0:01:26.3]} 27... Re7 {[%clk
0:01:18.1]} 28. c5 {[%clk 0:01:15.5]} 28... Qxc5 {[%clk 0:01:15]} 29. Rxa6
{[%clk 0:01:15.5]} 29... Be5 {[%clk 0:00:54.7]} 30. Be3 {[%clk 0:01:06.9]} 30...
Qb5 {[%clk 0:00:43.6]} 31. Qxb5 {[%clk 0:01:05.5]} 31... Nxb5 {[%clk 0:00:37.8]}
32. Rb1 {[%clk 0:01:02.6]} 32... Reb7 {[%clk 0:00:36.9]} 33. Rc6 {[%clk
0:00:58.8]} 33... Nd4 {[%clk 0:00:33.8]} 34. Rxb7 {[%clk 0:00:57.7]} 34... Rxb7
{[%clk 0:00:34.7]} 35. Rc8+ {[%clk 0:00:51.6]} 35... Kh7 {[%clk 0:00:34.1]} 36.
Rc1 {[%clk 0:00:31.3]} 36... Ne2 {[%clk 0:00:27.4]} 37. Re1 {[%clk 0:00:30.8]}
37... Rb2 {[%clk 0:00:26.5]} 38. Ba7 {[%clk 0:00:14.4]} 38... Nf4 {[%clk
0:00:25.7]} 39. Bf1 {[%clk 0:00:14.7]} 39... Nxh3 {[%clk 0:00:20.5]} 40. Bxh3
{[%clk 0:00:15.6]} 40... Rh2+ {[%clk 0:00:20.3]} 41. Kg1 {[%clk 0:00:16.3]}
41... Rxh3 {[%clk 0:00:21.2]} 42. Bf2 {[%clk 0:00:16.2]} 42... Bg3 {[%clk
0:00:19.5]} 43. Kg2 {[%clk 0:00:10.6]} 43... Bxf2 {[%clk 0:00:19.6]} 44. Re7
{[%clk 0:00:11.1]} 44... Rg3+ {[%clk 0:00:17.6]} 45. Kxf2 {[%clk 0:00:11.2]}
45... Rxg4 {[%clk 0:00:18.5]} 46. Rxf7 {[%clk 0:00:11.4]} 46... Rg5 {[%clk
0:00:18]} 47. Rd7 {[%clk 0:00:10.8]} 47... Rxd5 {[%clk 0:00:18.7]} 48. Kf3
{[%clk 0:00:11.7]} 48... g5 {[%clk 0:00:18.7]} 49. Re7 {[%clk 0:00:10.9]} 49...
Kg6 {[%clk 0:00:19]} 50. Re6+ {[%clk 0:00:11]} 50... Kf5 {[%clk 0:00:19.2]} 51.
Re8 {[%clk 0:00:11.9]} 51... Rd3+ {[%clk 0:00:18.2]} 52. Ke2 {[%clk 0:00:12.8]}
52... Ra3 {[%clk 0:00:17.3]} 53. Rd8 {[%clk 0:00:12.7]} 53... Ra6 {[%clk
0:00:17.8]} 54. Ke3 {[%clk 0:00:12.7]} 54... Kg4 {[%clk 0:00:15.8]} 55. Rg8
{[%clk 0:00:12.3]} 55... Kg3 {[%clk 0:00:16]} 56. Rxg7 {[%clk 0:00:12.4]} 56...
g4 {[%clk 0:00:16.6]} 57. Rg8 {[%clk 0:00:13.3]} 57... Ra5 {[%clk 0:00:15.3]}
58. Ke2 {[%clk 0:00:14.2]} 58... Re5+ {[%clk 0:00:12.9]} 59. Kf1 {[%clk
0:00:14.1]} 59... Rd5 {[%clk 0:00:12.8]} 60. Rg7 {[%clk 0:00:13.7]} 60... Rd2
{[%clk 0:00:13]} 61. Rg8 {[%clk 0:00:13.5]} 61... d5 {[%clk 0:00:12.9]} 62. Rg5
{[%clk 0:00:12.9]} 62... d4 {[%clk 0:00:13.3]} 63. Rg8 {[%clk 0:00:13.8]} 63...
d3 {[%clk 0:00:13.4]} 64. Ke1 {[%clk 0:00:13.2]} 64... Re2+ {[%clk 0:00:13.5]}
65. Kd1 {[%clk 0:00:13.3]} 65... Kf3 {[%clk 0:00:13.1]} 66. Rd8 {[%clk
0:00:13.1]} 66... g3 {[%clk 0:00:13.1]} 67. Rxd3+ {[%clk 0:00:13.4]} 67... Kf2
{[%clk 0:00:13.2]} 68. Rxg3 {[%clk 0:00:11.3]} 68... Re1+ {[%clk 0:00:13.1]} 69.
Kd2 {[%clk 0:00:12]} 69... Re2+ {[%clk 0:00:13.2]} 70. Kd1 {[%clk 0:00:12.7]}
70... Re1+ {[%clk 0:00:13.6]} 71. Kd2 {[%clk 0:00:13.3]} 71... Re2+ {[%clk
0:00:12.9]} 72. Kd3 {[%clk 0:00:13.6]} 72... Kxg3 {[%clk 0:00:12.1]} 73. Kxe2
{[%clk 0:00:14.1]} 1/2-1/2

[Event "Early-Titled-Tuesday-Blitz-October-17-2023"]
[Site "Chess.com"]
[Date "2023.10.17"]
[Round "1"]
[White "campochess"]
[Black "ArmanGhevondyanchess"]
[Result "0-1"]
[WhiteElo "2148"]
[BlackElo "2552"]
[TimeControl "180+1"]
[EndTime "8:08:25 PDT"]
[Termination "ArmanGhevondyanchess won by resignation"]

1. e4 {[%clk 0:02:58.6]} 1... c5 {[%clk 0:03:00.2]} 2. Nc3 {[%clk 0:02:55.7]}
2... Nc6 {[%clk 0:03:00.6]} 3. g3 {[%clk 0:02:55.7]} 3... g6 {[%clk 0:03:01]} 4.
Bg2 {[%clk 0:02:55.7]} 4... Bg7 {[%clk 0:03:01.9]} 5. Nge2 {[%clk 0:02:55.1]}
5... d6 {[%clk 0:03:02.5]} 6. d3 {[%clk 0:02:55]} 6... h5 {[%clk 0:03:03]} 7. h3
{[%clk 0:02:54]} 7... h4 {[%clk 0:03:03.5]} 8. g4 {[%clk 0:02:53.3]} 8... Nd4
{[%clk 0:03:03.9]} 9. Nxd4 {[%clk 0:02:52.3]} 9... cxd4 {[%clk 0:03:03.1]} 10.
Ne2 {[%clk 0:02:48.4]} 10... e5 {[%clk 0:03:03.5]} 11. c3 {[%clk 0:02:45.2]}
11... dxc3 {[%clk 0:03:03.6]} 12. bxc3 {[%clk 0:02:44.2]} 12... Ne7 {[%clk
0:03:04.5]} 13. Be3 {[%clk 0:02:39.2]} 13... Be6 {[%clk 0:03:04.3]} 14. d4
{[%clk 0:02:36.6]} 14... Rc8 {[%clk 0:03:01.2]} 15. Rc1 {[%clk 0:02:34.6]} 15...
Qa5 {[%clk 0:03:00.7]} 16. Qd2 {[%clk 0:02:32.5]} 16... Qxa2 {[%clk 0:02:56.8]}
17. Qxa2 {[%clk 0:02:32.2]} 17... Bxa2 {[%clk 0:02:57.7]} 18. Ra1 {[%clk
0:02:31.9]} 18... Bc4 {[%clk 0:02:57.9]} 19. Rxa7 {[%clk 0:02:31.5]} 19... Ba6
{[%clk 0:02:58.1]} 20. Kd2 {[%clk 0:02:25.8]} 20... Nc6 {[%clk 0:02:58.1]} 21.
Rxa6 {[%clk 0:02:22.6]} 21... bxa6 {[%clk 0:02:59]} 22. Ra1 {[%clk 0:02:20.3]}
22... Ra8 {[%clk 0:02:57.3]} 23. d5 {[%clk 0:02:19.7]} 23... Ne7 {[%clk
0:02:55.5]} 24. Bb6 {[%clk 0:02:18.2]} 24... Kd7 {[%clk 0:02:53.9]} 25. c4
{[%clk 0:02:17.8]} 25... Rhb8 {[%clk 0:02:53.8]} 26. c5 {[%clk 0:02:12.9]} 26...
dxc5 {[%clk 0:02:53.8]} 27. Bxc5 {[%clk 0:02:12.1]} 27... Rb2+ {[%clk
0:02:53.7]} 28. Kd3 {[%clk 0:02:08.1]} 28... Bh6 {[%clk 0:02:51.8]} 29. Nc3
{[%clk 0:02:06.3]} 29... a5 {[%clk 0:02:46.5]} 30. Na4 {[%clk 0:02:01.9]} 30...
Rd2+ {[%clk 0:02:40.7]} 31. Kc4 {[%clk 0:02:01.2]} 31... Nc8 {[%clk 0:02:39.3]}
32. Rb1 {[%clk 0:01:55.8]} 32... Nd6+ {[%clk 0:02:31.5]} 33. Bxd6 {[%clk
0:01:55.1]} 33... Kxd6 {[%clk 0:02:31.6]} 34. Rb6+ {[%clk 0:01:52.8]} 34... Kc7
{[%clk 0:02:28.6]} 35. Rf6 {[%clk 0:01:49.3]} 35... Rc8 {[%clk 0:02:21.3]} 36.
Rxf7+ {[%clk 0:01:42.3]} 36... Kd6+ {[%clk 0:02:20.5]} 37. Kb5 {[%clk
0:01:38.5]} 37... Rb8+ {[%clk 0:02:13.3]} 38. Ka6 {[%clk 0:01:38.3]} 38... Rc2
{[%clk 0:01:55.1]} 39. Bf1 {[%clk 0:01:28.1]} 39... Ra8+ {[%clk 0:01:44.8]} 40.
Kb7 {[%clk 0:01:26.3]} 40... Rcc8 {[%clk 0:01:43.6]} 41. Rf6+ {[%clk 0:01:18.4]}
41... Ke7 {[%clk 0:01:42]} 42. Rc6 {[%clk 0:01:03.2]} 42... Rab8+ {[%clk
0:01:31.2]} 43. Ka7 {[%clk 0:01:02.9]} 43... Ra8+ {[%clk 0:01:21.5]} 44. Kb7
{[%clk 0:01:02.8]} 44... Rcb8+ {[%clk 0:01:22.2]} 45. Kc7 {[%clk 0:01:01.9]}
45... Bd2 {[%clk 0:01:14.6]} 46. Nb6 {[%clk 0:00:52.9]} 46... Bb4 {[%clk
0:01:07.3]} 47. Re6+ {[%clk 0:00:46.5]} 47... Kf7 {[%clk 0:01:06.8]} 48. Nxa8
{[%clk 0:00:40.3]} 48... Rxa8 {[%clk 0:01:07.7]} 49. Kb7 {[%clk 0:00:36.2]}
49... Re8 {[%clk 0:01:00.5]} 50. Rc6 {[%clk 0:00:30.6]} 50... Rf8 {[%clk
0:00:58.6]} 51. d6 {[%clk 0:00:29.9]} 51... Ke6 {[%clk 0:00:58.2]} 52. Bc4+
{[%clk 0:00:28.7]} 52... Kd7 {[%clk 0:00:58.8]} 53. Rb6 {[%clk 0:00:17.2]} 53...
Bxd6 {[%clk 0:00:51]} 54. Bb5+ {[%clk 0:00:16.3]} 54... Ke7 {[%clk 0:00:51.3]}
55. Kc6 {[%clk 0:00:15.9]} 55... Rc8+ {[%clk 0:00:44.4]} 56. Kb7 {[%clk
0:00:15.8]} 56... Rb8+ {[%clk 0:00:34.3]} 57. Ka6 {[%clk 0:00:15.8]} 57... Rxb6+
{[%clk 0:00:32.1]} 58. Kxb6 {[%clk 0:00:15.9]} 58... Bb4 {[%clk 0:00:32.8]} 59.
Kc6 {[%clk 0:00:15.6]} 59... Kf6 {[%clk 0:00:32.7]} 60. f3 {[%clk 0:00:15]}
60... Kg5 {[%clk 0:00:32]} 61. Kd5 {[%clk 0:00:14.9]} 61... Kf4 {[%clk
0:00:32.3]} 62. Be8 {[%clk 0:00:14.4]} 62... g5 {[%clk 0:00:25]} 63. Bc6 {[%clk
0:00:14.1]} 63... Bc3 {[%clk 0:00:22.1]} 64. Ke6 {[%clk 0:00:13.8]} 64... Kxf3
{[%clk 0:00:21.1]} 65. Kf5 {[%clk 0:00:14]} 65... Kg3 {[%clk 0:00:17.8]} 66.
Kxg5 {[%clk 0:00:14]} 66... Kxh3 {[%clk 0:00:18.2]} 67. Kh5 {[%clk 0:00:13]}
67... Kg3 {[%clk 0:00:17.6]} 68. g5 {[%clk 0:00:13.2]} 68... Bb4 {[%clk
0:00:17.5]} 69. g6 {[%clk 0:00:13.1]} 69... Bf8 {[%clk 0:00:17.3]} 70. Kg5
{[%clk 0:00:13.3]} 70... h3 {[%clk 0:00:17.7]} 71. Kf6 {[%clk 0:00:13.1]} 71...
h2 {[%clk 0:00:18.1]} 72. Kf7 {[%clk 0:00:13]} 72... Bh6 {[%clk 0:00:18.6]} 0-1

[Event "Early-Titled-Tuesday-Blitz-October-17-2023"]
[Site "Chess.com"]
[Date "2023.10.17"]
[Round "1"]
[White "I_am_Javi"]
[Black "Treasurechess777"]
[Result "1-0"]
[WhiteElo "2741"]
[BlackElo "2448"]
[TimeControl "180+1"]
[EndTime "8:08:27 PDT"]
[Termination "I_am_Javi won on time"]

1. e4 {[%clk 0:02:59.7]} 1... Nf6 {[%clk 0:03:00.3]} 2. Nc3 {[%clk 0:02:55.8]}
2... e6 {[%clk 0:02:59.7]} 3. d4 {[%clk 0:02:55.2]} 3... d5 {[%clk 0:02:58.1]}
4. e5 {[%clk 0:02:55.7]} 4... Nfd7 {[%clk 0:02:56.6]} 5. f4 {[%clk 0:02:56.6]}
5... c5 {[%clk 0:02:54.3]} 6. Nf3 {[%clk 0:02:57.5]} 6... Nc6 {[%clk 0:02:53.4]}
7. Be3 {[%clk 0:02:56.9]} 7... a6 {[%clk 0:02:49.5]} 8. Qd2 {[%clk 0:02:56.9]}
8... b5 {[%clk 0:02:48.3]} 9. Ne2 {[%clk 0:02:54]} 9... c4 {[%clk 0:02:46.8]}
10. c3 {[%clk 0:02:54]} 10... g6 {[%clk 0:02:46.6]} 11. g4 {[%clk 0:02:54.4]}
11... h5 {[%clk 0:02:46.4]} 12. gxh5 {[%clk 0:02:54]} 12... Rxh5 {[%clk
0:02:45.8]} 13. Ng3 {[%clk 0:02:54]} 13... Rh8 {[%clk 0:02:45.1]} 14. h4 {[%clk
0:02:54.3]} 14... Be7 {[%clk 0:02:41]} 15. h5 {[%clk 0:02:54.9]} 15... Nf8
{[%clk 0:02:17.8]} 16. hxg6 {[%clk 0:02:52.5]} 16... Nxg6 {[%clk 0:02:18.7]} 17.
Rxh8+ {[%clk 0:02:51.7]} 17... Nxh8 {[%clk 0:02:19.6]} 18. Qh2 {[%clk
0:02:45.1]} 18... Ng6 {[%clk 0:02:19.2]} 19. Bh3 {[%clk 0:02:36.4]} 19... Nh4
{[%clk 0:02:10.4]} 20. Kf2 {[%clk 0:02:30.9]} 20... Nxf3 {[%clk 0:02:08.8]} 21.
Kxf3 {[%clk 0:02:31.8]} 21... Kd7 {[%clk 0:02:05.6]} 22. f5 {[%clk 0:02:31.7]}
22... Bg5 {[%clk 0:02:01.8]} 23. fxe6+ {[%clk 0:02:18.1]} 23... fxe6 {[%clk
0:02:01.4]} 24. Bxe6+ {[%clk 0:02:19]} 24... Kc7 {[%clk 0:01:55.6]} 25. Bxg5
{[%clk 0:00:43.9]} 25... Qxg5 {[%clk 0:01:56.5]} 26. Bxd5 {[%clk 0:00:43.6]}
26... Bg4+ {[%clk 0:01:49.9]} 27. Kg2 {[%clk 0:00:44]} 27... Rf8 {[%clk
0:01:21.9]} 28. Rf1 {[%clk 0:00:43.4]} 28... Rxf1 {[%clk 0:00:52.2]} 29. Kxf1
{[%clk 0:00:44.3]} 29... Ne7 {[%clk 0:00:51.3]} 30. Qh7 {[%clk 0:00:20.6]} 30...
Qc1+ {[%clk 0:00:36.4]} 31. Kg2 {[%clk 0:00:20.3]} 31... Qxb2+ {[%clk
0:00:35.3]} 32. Kg1 {[%clk 0:00:19.8]} 32... Qc1+ {[%clk 0:00:32.7]} 33. Nf1
{[%clk 0:00:19.5]} 33... Qg5 {[%clk 0:00:31]} 34. Bg2 {[%clk 0:00:18.4]} 34...
Kb6 {[%clk 0:00:26.9]} 35. Qh8 {[%clk 0:00:15.7]} 35... Ka5 {[%clk 0:00:25.8]}
36. Qd8+ {[%clk 0:00:14.8]} 36... Ka4 {[%clk 0:00:25.3]} 37. Qd6 {[%clk
0:00:13.9]} 37... a5 {[%clk 0:00:23.8]} 38. Qf6 {[%clk 0:00:14.4]} 38... Qxf6
{[%clk 0:00:16.6]} 39. exf6 {[%clk 0:00:15.3]} 39... Ng6 {[%clk 0:00:16.7]} 40.
Ne3 {[%clk 0:00:12.7]} 40... Bd7 {[%clk 0:00:12.8]} 41. Be4 {[%clk 0:00:11.8]}
41... Nf8 {[%clk 0:00:12.5]} 42. Bb1 {[%clk 0:00:11.6]} 42... Be6 {[%clk
0:00:12.5]} 43. Kf2 {[%clk 0:00:11.4]} 43... b4 {[%clk 0:00:12.2]} 44. Nd1
{[%clk 0:00:12]} 44... Ka3 {[%clk 0:00:10.1]} 45. Ke3 {[%clk 0:00:11.7]} 45...
b3 {[%clk 0:00:09.9]} 46. axb3 {[%clk 0:00:11.4]} 46... cxb3 {[%clk 0:00:10.8]}
47. Bd3 {[%clk 0:00:10.1]} 47... Ka2 {[%clk 0:00:10]} 48. c4 {[%clk 0:00:10.4]}
48... a4 {[%clk 0:00:09.3]} 49. d5 {[%clk 0:00:10.8]} 49... Bd7 {[%clk
0:00:09.1]} 50. Kd4 {[%clk 0:00:11.3]} 50... a3 {[%clk 0:00:09.6]} 51. Nc3+
{[%clk 0:00:11.7]} 51... Ka1 {[%clk 0:00:09.1]} 52. c5 {[%clk 0:00:12.6]} 52...
b2 {[%clk 0:00:06.8]} 53. c6 {[%clk 0:00:13.2]} 53... Bc8 {[%clk 0:00:06]} 54.
d6 {[%clk 0:00:12.9]} 54... Be6 {[%clk 0:00:05.4]} 55. d7 {[%clk 0:00:11.7]}
55... Bxd7 {[%clk 0:00:05]} 56. cxd7 {[%clk 0:00:12.6]} 56... Nxd7 {[%clk
0:00:05.2]} 57. f7 {[%clk 0:00:13.3]} 57... Nf8 {[%clk 0:00:04.9]} 58. Ke5
{[%clk 0:00:13.8]} 58... a2 {[%clk 0:00:05]} 59. Kf6 {[%clk 0:00:11.2]} 59...
b1=Q {[%clk 0:00:04.5]} 60. Bxb1 {[%clk 0:00:10.7]} 60... axb1=Q {[%clk
0:00:05.4]} 61. Nxb1 {[%clk 0:00:11]} 61... Kxb1 {[%clk 0:00:04.6]} 62. Ke7
{[%clk 0:00:11.7]} 62... Ng6+ {[%clk 0:00:04.4]} 63. Ke6 {[%clk 0:00:12.4]}
63... Nf8+ {[%clk 0:00:04.6]} 64. Kf6 {[%clk 0:00:13.3]} 64... Nd7+ {[%clk
0:00:03.9]} 65. Ke7 {[%clk 0:00:14]} 65... Ne5 {[%clk 0:00:01.9]} 66. Kf6 {[%clk
0:00:08.5]} 66... Nd7+ {[%clk 0:00:02]} 67. Kg7 {[%clk 0:00:07.9]} 1-0